Workbook

Sheet Feuil1
A1: Système simple gagnant (1-2) | M1: Bilan de la partie | N1: Gain | P1: Bénéfice
A2: Jeu | B2: Cotes | C2: Coefficient Proportio. | D2: Bénéfice souhaité | E2: Coefficient Répartition | F2: Mise | G2: Gain potentiel | H2: Bénéfice potentiel | I2: Rapport pour 1€ | J2: Gain réel | K2: Bénéfice réel
B3: 6 | C3: =IF(B3="","",1/B3) -> 0.1666666667 | D3: =IF(B3="","",$E$20) -> 5 | E3: =IF(B3="","",1/(1-SUM($C$3:$C$7))) -> 1.578947368 | F3: =IF(C3="","",MAX(1,C3*(D3+O$3)*E3)) -> 1.315789474 | G3: =IF(B3="","",(F3*B3)) -> 7.894736842 | H3: =IF(B3="","",G3-F$5) -> 5 | I3: 5 | J3: =IF(F3="","",(F3*I3)) -> 6.578947368 | K3: =IF(I3<=0,"",J$5-F$5) -> 5.263157895 | N3: Perte | P3: =(H21-((O3+O1)+(O9+O7)+(O15+O13))) -> 300
B4: 5 | C4: =IF(B4="","",1/B4) -> 0.2 | D4: =IF(B4="","",$E$20) -> 5 | E4: =IF(B4="","",1/(1-SUM($C$3:$C$7))) -> 1.578947368 | F4: =IF(C4="","",MAX(1,C4*(D4+O$3)*E4)) -> 1.578947368 | G4: =IF(B4="","",(F4*B4)) -> 7.894736842 | H4: =IF(B4="","",G4-F$5) -> 5 | I4: 1 | J4: =IF(F4="","",(F4*I4)) -> 1.578947368 | K4: =IF(I4<=0,"",J$5-F$5) -> 5.263157895
F5: =SUM(F3:F4) -> 2.894736842 | J5: =SUM(J3:J4) -> 8.157894737
A7: Système simple gagnant (1-3) | M7: Bilan de la partie | N7: Gain | P7: Bénéfice
A8: Jeu | B8: Cotes | C8: Coefficient Proportio. | D8: Bénéfice souhaité | E8: Coefficient Répartition | F8: Mise | G8: Gain potentiel | H8: Bénéfice potentiel | I8: Rapport pour 1€ | J8: Gain réel | K8: Bénéfice réel
C9: =IF(B9="","",1/B9) ->  | D9: =IF(B9="","",$E$20) ->  | E9: =IF(B9="","",1/(1-SUM($C$9:$C$12))) ->  | F9: =IF(C9="","",MAX(1,C9*(D9+O$3)*E9)) ->  | G9: =IF(B9="","",(F9*B9)) ->  | H9: =IF(B9="","",G9-F$5) ->  | J9: =IF(F9="","",(F9*I9)) ->  | K9: =IF(I9<=0,"",J$11-F$11) ->  | N9: Perte | P9: =(H21-((O3+O1)+(O9+O7)+(O15+O13))) -> 300
C10: =IF(B10="","",1/B10) ->  | D10: =IF(B10="","",$E$20) ->  | E10: =IF(B10="","",1/(1-SUM($C$9:$C$12))) ->  | F10: =IF(C10="","",MAX(1,C10*(D10+O$3)*E10)) ->  | G10: =IF(B10="","",(F10*B10)) ->  | H10: =IF(B10="","",G10-F$5) ->  | J10: =IF(F10="","",(F10*I10)) ->  | K10: =IF(I10<=0,"",J$11-F$11) -> 
F11: =SUM(F9:F10) -> 0 | J11: =SUM(J9:J10) -> 0
A13: Système simple gagnant (2-3) | M13: Bilan de la partie | N13: Gain | P13: Bénéfice
A14: Jeu | B14: Cotes | C14: Coefficient Proportio. | D14: Bénéfice souhaité | E14: Coefficient Répartition | F14: Mise | G14: Gain potentiel | H14: Bénéfice potentiel | I14: Rapport pour 1€ | J14: Gain réel | K14: Bénéfice réel
C15: =IF(B15="","",1/B15) ->  | D15: =IF(B15="","",$E$20) ->  | E15: =IF(B15="","",1/(1-SUM($C$15:$C$17))) ->  | F15: =IF(C15="","",MAX(1,C15*(D15+O$3)*E15)) ->  | G15: =IF(B15="","",(F15*B15)) ->  | H15: =IF(B15="","",G15-F$5) ->  | J15: =IF(F15="","",(F15*I15)) ->  | K15: =IF(I15<=0,"",J$17-F$17) ->  | N15: Perte | P15: =(H21-((O3+O1)+(O9+O7)+(O15+O13))) -> 300
C16: =IF(B16="","",1/B16) ->  | D16: =IF(B16="","",$E$20) ->  | E16: =IF(B16="","",1/(1-SUM($C$15:$C$17))) ->  | F16: =IF(C16="","",MAX(1,C16*(D16+O$3)*E16)) ->  | G16: =IF(B16="","",(F16*B16)) ->  | H16: =IF(B16="","",G16-F$5) ->  | J16: =IF(F16="","",(F16*I16)) ->  | K16: =IF(I16<=0,"",J$5-F$5) -> 
F17: =SUM(F15:F16) -> 0 | J17: =SUM(J15:J16) -> 0
A19: Bénéfice souhaité | C19: VB1 | D19: VB2 | E19: VB3 | F19: Total gains | I19: Bénéfices | J19: =H19-E21 -> 0 | M19: Jeu | N19: =IF(A3="","",A3) ->  | O19: =IF(A4="","",A4) ->  | P19: =IF(A10="","",A10) -> 
C20: =IF(O3>0,0,$A$21) -> 5 | D20: =IF(O9>0,0,$A$21) -> 5 | E20: =IF(O15>0,0,$A$21) -> 5 | F20: Capital brut | H20: 300 | M20: Mise | N20: =IF(F3="","",F3+F9) ->  | O20: =IF(F4="","",F4+F15) ->  | P20: =IF(F10="","",F10+F16) -> 
A21: 5 | C21: Total mises | F21: Capital net | H21: =H20-E21+H19 -> 300

Sheet Feuil2

Sheet Feuil3
